[Event "*** Titled Tuesday Blitz"]
[Site "Chess.com"]
[Date "2020.04.14"]
[Round "5"]
[White "MartinMatthiesen"]
[Black "chessintuit"]
[Result "0-1"]
[WhiteElo "2422"]
[BlackElo "2613"]
[TimeControl "180+1"]
[EndTime "10:50:02 PDT"]
[Termination "chessintuit won by resignation"]

1. d4 {[%clk 0:03:00.9]} 1... d5 {[%clk 0:02:59.6]} 2. c4 {[%clk 0:03:00.4]}
2... dxc4 {[%clk 0:02:58.1]} 3. Nf3 {[%clk 0:02:58.8]} 3... Nf6 {[%clk
0:02:57.6]} 4. e3 {[%clk 0:02:58.8]} 4... Bg4 {[%clk 0:02:57.9]} 5. Bxc4 {[%clk
0:02:58.5]} 5... e6 {[%clk 0:02:58.3]} 6. h3 {[%clk 0:02:57.5]} 6... Bh5 {[%clk
0:02:58]} 7. Qb3 {[%clk 0:02:48.5]} 7... Bxf3 {[%clk 0:02:42.1]} 8. gxf3 {[%clk
0:02:47.2]} 8... b6 {[%clk 0:02:39]} 9. f4 {[%clk 0:02:42.7]} 9... Nbd7 {[%clk
0:02:38.4]} 10. Nd2 {[%clk 0:02:41]} 10... c5 {[%clk 0:02:37.6]} 11. Nf3 {[%clk
0:02:40.3]} 11... cxd4 {[%clk 0:02:36.4]} 12. Nxd4 {[%clk 0:02:39.6]} 12... Bc5
{[%clk 0:02:36.4]} 13. f5 {[%clk 0:02:19]} 13... Bxd4 {[%clk 0:02:35.1]} 14.
fxe6 {[%clk 0:02:18.4]} 14... fxe6 {[%clk 0:02:32.8]} 15. exd4 {[%clk
0:02:16.7]} 15... O-O {[%clk 0:02:31.6]} 16. Bxe6+ {[%clk 0:02:13]} 16... Kh8
{[%clk 0:02:31.8]} 17. O-O {[%clk 0:02:12.7]} 17... Nh5 {[%clk 0:01:48.5]} 18.
Qd5 {[%clk 0:01:55.2]} 18... Nhf6 {[%clk 0:01:46.9]} 19. Qg2 {[%clk 0:01:52.4]}
19... Qe7 {[%clk 0:01:45.2]} 20. Bb3 {[%clk 0:01:46.7]} 20... Qd6 {[%clk
0:01:44.7]} 21. Be3 {[%clk 0:01:42.3]} 21... Rae8 {[%clk 0:01:44.6]} 22. Rac1
{[%clk 0:01:40.9]} 22... Ne4 {[%clk 0:01:43.1]} 23. Bc2 {[%clk 0:01:02.5]} 23...
Ndf6 {[%clk 0:01:37.8]} 24. Bd3 {[%clk 0:00:56.4]} 24... Re7 {[%clk 0:01:24.1]}
25. Rfe1 {[%clk 0:00:55.1]} 25... Rfe8 {[%clk 0:01:23.2]} 26. Bb5 {[%clk
0:00:46]} 26... Rf8 {[%clk 0:01:16.9]} 27. Bc6 {[%clk 0:00:45.4]} 27... Nd5
{[%clk 0:01:12.6]} 28. Ba4 {[%clk 0:00:28.1]} 28... Nxe3 {[%clk 0:01:10.8]} 29.
fxe3 {[%clk 0:00:26.3]} 29... Re6 {[%clk 0:01:10.4]} 30. Rc6 {[%clk 0:00:24.6]}
30... Qe7 {[%clk 0:01:03.9]} 31. Rxe6 {[%clk 0:00:23.9]} 31... Qxe6 {[%clk
0:01:04.8]} 32. Bb3 {[%clk 0:00:23.6]} 32... Qe7 {[%clk 0:01:04]} 33. Rf1 {[%clk
0:00:23.9]} 33... Rxf1+ {[%clk 0:01:02.3]} 34. Qxf1 {[%clk 0:00:23.7]} 34...
Qg5+ {[%clk 0:01:01.2]} 35. Kh2 {[%clk 0:00:22.3]} 35... Qg3+ {[%clk 0:00:59.7]}
0-1

[Event "*** Titled Tuesday Blitz"]
[Site "Chess.com"]
[Date "2020.04.14"]
[Round "5"]
[White "LuisFSiles"]
[Black "Mikhail_Golubev"]
[Result "0-1"]
[WhiteElo "2309"]
[BlackElo "2515"]
[TimeControl "180+1"]
[EndTime "10:50:05 PDT"]
[Termination "Mikhail_Golubev won by resignation"]

1. e4 {[%clk 0:03:00.4]} 1... c5 {[%clk 0:02:59.4]} 2. Nf3 {[%clk 0:02:59.7]}
2... d6 {[%clk 0:02:59.5]} 3. d4 {[%clk 0:02:58.8]} 3... Nf6 {[%clk 0:02:59.7]}
4. Nc3 {[%clk 0:02:57.7]} 4... cxd4 {[%clk 0:02:59.8]} 5. Nxd4 {[%clk
0:02:58.6]} 5... Nc6 {[%clk 0:02:59.5]} 6. Bg5 {[%clk 0:02:55.7]} 6... e6 {[%clk
0:02:59.4]} 7. Qd2 {[%clk 0:02:50.7]} 7... a6 {[%clk 0:02:58.8]} 8. f3 {[%clk
0:02:49]} 8... Be7 {[%clk 0:02:46.5]} 9. O-O-O {[%clk 0:02:43.4]} 9... Bd7
{[%clk 0:02:34.2]} 10. g4 {[%clk 0:02:31.5]} 10... Nxd4 {[%clk 0:02:33.1]} 11.
Qxd4 {[%clk 0:02:30.2]} 11... Rc8 {[%clk 0:02:29.1]} 12. h4 {[%clk 0:02:18.3]}
12... O-O {[%clk 0:02:24.6]} 13. Kb1 {[%clk 0:02:06.7]} 13... Qa5 {[%clk
0:02:15.3]} 14. Bd2 {[%clk 0:01:46.6]} 14... Qc5 {[%clk 0:02:01.9]} 15. Qxc5
{[%clk 0:01:32.5]} 15... Rxc5 {[%clk 0:01:59.8]} 16. Bf4 {[%clk 0:01:32.5]}
16... e5 {[%clk 0:01:46.3]} 17. Bg5 {[%clk 0:01:29.7]} 17... Be6 {[%clk
0:01:46.2]} 18. Bxf6 {[%clk 0:01:19.7]} 18... gxf6 {[%clk 0:01:45.3]} 19. Nd5
{[%clk 0:01:08.8]} 19... Bxd5 {[%clk 0:01:43]} 20. Rxd5 {[%clk 0:01:07.4]} 20...
Rxd5 {[%clk 0:01:35.4]} 21. exd5 {[%clk 0:01:08.3]} 21... f5 {[%clk 0:01:18.3]}
22. gxf5 {[%clk 0:00:52.6]} 22... Kg7 {[%clk 0:01:18.3]} 23. Be2 {[%clk
0:00:32.1]} 23... Kf6 {[%clk 0:01:15.9]} 24. Bd3 {[%clk 0:00:31.1]} 24... Rg8
{[%clk 0:01:15.3]} 25. Be4 {[%clk 0:00:27.9]} 25... Bf8 {[%clk 0:01:11.1]} 26.
c4 {[%clk 0:00:27]} 26... Bh6 {[%clk 0:01:10.7]} 27. b4 {[%clk 0:00:24.5]} 27...
Be3 {[%clk 0:01:02.2]} 28. Kc2 {[%clk 0:00:21.2]} 28... Rg2+ {[%clk 0:01:00.7]}
29. Kd3 {[%clk 0:00:21.2]} 29... Ba7 {[%clk 0:00:50.5]} 30. a4 {[%clk 0:00:20]}
30... Rb2 {[%clk 0:00:48.3]} 31. b5 {[%clk 0:00:17.4]} 31... a5 {[%clk
0:00:48.3]} 32. Rg1 {[%clk 0:00:16.4]} 32... Bxg1 {[%clk 0:00:47.5]} 0-1

[Event "*** Titled Tuesday Blitz"]
[Site "Chess.com"]
[Date "2020.04.14"]
[Round "5"]
[White "djogrodek1"]
[Black "anon132639"]
[Result "1-0"]
[WhiteElo "2571"]
[BlackElo "2706"]
[TimeControl "180+1"]
[EndTime "10:50:06 PDT"]
[Termination "djogrodek1 won by checkmate"]

1. c4 {[%clk 0:03:00.9]} 1... g6 {[%clk 0:02:59.9]} 2. Nc3 {[%clk 0:02:56.9]}
2... Bg7 {[%clk 0:03:00.1]} 3. d4 {[%clk 0:02:51.4]} 3... Nf6 {[%clk 0:03:00.3]}
4. e4 {[%clk 0:02:51.7]} 4... O-O {[%clk 0:02:59.9]} 5. h3 {[%clk 0:02:51.7]}
5... d6 {[%clk 0:03:00.2]} 6. Be3 {[%clk 0:02:51.6]} 6... e5 {[%clk 0:02:55.7]}
7. d5 {[%clk 0:02:51.5]} 7... a5 {[%clk 0:02:56.2]} 8. g4 {[%clk 0:02:51]} 8...
Na6 {[%clk 0:02:56.2]} 9. Nge2 {[%clk 0:02:50.9]} 9... Nd7 {[%clk 0:02:47.1]}
10. Ng3 {[%clk 0:02:50.6]} 10... Ndc5 {[%clk 0:02:46.8]} 11. Qd2 {[%clk
0:02:46.3]} 11... c6 {[%clk 0:02:27.8]} 12. f3 {[%clk 0:02:44]} 12... cxd5
{[%clk 0:02:27.5]} 13. cxd5 {[%clk 0:02:44.9]} 13... Bd7 {[%clk 0:02:25]} 14. h4
{[%clk 0:02:44.5]} 14... Bf6 {[%clk 0:02:00.6]} 15. g5 {[%clk 0:02:17.1]} 15...
Be7 {[%clk 0:01:50.4]} 16. h5 {[%clk 0:02:16.7]} 16... Kg7 {[%clk 0:01:30]} 17.
O-O-O {[%clk 0:01:35.1]} 17... a4 {[%clk 0:01:12.4]} 18. Kb1 {[%clk 0:01:33.9]}
18... b5 {[%clk 0:01:04.5]} 19. Bh3 {[%clk 0:00:58.9]} 19... b4 {[%clk
0:00:55.1]} 20. Nce2 {[%clk 0:00:58.1]} 20... Bb5 {[%clk 0:00:49.1]} 21. Nc1
{[%clk 0:00:53.6]} 21... Rc8 {[%clk 0:00:29.7]} 22. Bxc8 {[%clk 0:00:52.4]}
22... Qxc8 {[%clk 0:00:30.6]} 23. hxg6 {[%clk 0:00:48.7]} 23... hxg6 {[%clk
0:00:26.7]} 24. Rh7+ {[%clk 0:00:34.6]} 24... Kxh7 {[%clk 0:00:20.3]} 25. Qh2+
{[%clk 0:00:35.2]} 25... Kg8 {[%clk 0:00:20.1]} 26. Rh1 {[%clk 0:00:35.1]} 26...
f5 {[%clk 0:00:15.1]} 27. Qh7# {[%clk 0:00:34.9]} 1-0

[Event "*** Titled Tuesday Blitz"]
[Site "Chess.com"]
[Date "2020.04.14"]
[Round "5"]
[White "GadimbayliA"]
[Black "Kobalia"]
[Result "1-0"]
[WhiteElo "2901"]
[BlackElo "2665"]
[TimeControl "180+1"]
[EndTime "10:50:08 PDT"]
[Termination "GadimbayliA won by resignation"]

1. e4 {[%clk 0:03:00.9]} 1... c6 {[%clk 0:02:58.6]} 2. Nf3 {[%clk 0:03:01.1]}
2... d5 {[%clk 0:02:58.4]} 3. exd5 {[%clk 0:03:02]} 3... cxd5 {[%clk 0:02:58.1]}
4. d4 {[%clk 0:03:02.9]} 4... Nc6 {[%clk 0:02:57.5]} 5. Ne5 {[%clk 0:03:03.3]}
5... e6 {[%clk 0:02:55.4]} 6. Bb5 {[%clk 0:03:01.8]} 6... Qc7 {[%clk 0:02:50.8]}
7. Bf4 {[%clk 0:03:01.9]} 7... Bd6 {[%clk 0:02:48.8]} 8. Qg4 {[%clk 0:03:02.4]}
8... g6 {[%clk 0:02:44.4]} 9. Qg3 {[%clk 0:03:02.9]} 9... Bd7 {[%clk 0:02:17.3]}
10. Nxg6 {[%clk 0:02:50.3]} 10... Bxf4 {[%clk 0:02:14.8]} 11. Nxf4 {[%clk
0:02:51.2]} 11... Nxd4 {[%clk 0:02:07.3]} 12. Bxd7+ {[%clk 0:02:46.6]} 12...
Kxd7 {[%clk 0:02:06.6]} 13. Na3 {[%clk 0:02:41.9]} 13... Ne7 {[%clk 0:01:54.9]}
14. Nd3 {[%clk 0:01:55.6]} 14... Nef5 {[%clk 0:01:36]} 15. Qh3 {[%clk
0:01:16.2]} 15... h5 {[%clk 0:01:22.7]} 16. O-O-O {[%clk 0:01:04.5]} 16... b5
{[%clk 0:01:17.9]} 17. Kb1 {[%clk 0:00:52.3]} 17... b4 {[%clk 0:01:16.4]} 18.
Nxb4 {[%clk 0:00:52.2]} 18... a5 {[%clk 0:01:11.1]} 19. Nxd5 {[%clk 0:00:50.2]}
19... Qb7 {[%clk 0:01:07.9]} 20. Ne3 {[%clk 0:00:44.3]} 20... Ke7 {[%clk
0:01:05.8]} 21. Rxd4 {[%clk 0:00:37.7]} 21... Rhb8 {[%clk 0:00:52.5]} 22. Nac4
{[%clk 0:00:31.6]} 22... Nxd4 {[%clk 0:00:45.8]} 23. Qh4+ {[%clk 0:00:31.8]}
23... Kf8 {[%clk 0:00:46.7]} 24. Qxd4 {[%clk 0:00:31.3]} 24... a4 {[%clk
0:00:46.6]} 25. a3 {[%clk 0:00:28.9]} 25... Ra6 {[%clk 0:00:43.6]} 26. Rd1
{[%clk 0:00:27.2]} 26... Rc6 {[%clk 0:00:43.3]} 27. Na5 {[%clk 0:00:18.1]} 1-0

[Event "*** Titled Tuesday Blitz"]
[Site "Chess.com"]
[Date "2020.04.14"]
[Round "5"]
[White "TST2014"]
[Black "marianokar"]
[Result "1-0"]
[WhiteElo "2539"]
[BlackElo "2366"]
[TimeControl "180+1"]
[EndTime "10:50:08 PDT"]
[Termination "TST2014 won by resignation"]

1. d4 {[%clk 0:01:59.5]} 1... Nf6 {[%clk 0:02:57.7]} 2. c4 {[%clk 0:01:59.3]}
2... e6 {[%clk 0:02:48.5]} 3. Nf3 {[%clk 0:01:58.6]} 3... b6 {[%clk 0:02:43.7]}
4. a3 {[%clk 0:01:58.3]} 4... d5 {[%clk 0:02:42.8]} 5. Nc3 {[%clk 0:01:57]} 5...
Be7 {[%clk 0:02:42.5]} 6. cxd5 {[%clk 0:01:54.6]} 6... exd5 {[%clk 0:02:40.6]}
7. g3 {[%clk 0:01:54.3]} 7... O-O {[%clk 0:02:39.3]} 8. Bg2 {[%clk 0:01:54.7]}
8... Bb7 {[%clk 0:02:39.3]} 9. O-O {[%clk 0:01:55.2]} 9... Nbd7 {[%clk
0:02:34.5]} 10. Bf4 {[%clk 0:01:54.7]} 10... a6 {[%clk 0:02:31.8]} 11. b4 {[%clk
0:01:50]} 11... c5 {[%clk 0:02:03.7]} 12. bxc5 {[%clk 0:01:47.2]} 12... bxc5
{[%clk 0:02:04.6]} 13. Rb1 {[%clk 0:01:46.6]} 13... Qc8 {[%clk 0:00:51.9]} 14.
Bh3 {[%clk 0:01:33.6]} 14... cxd4 {[%clk 0:00:47.8]} 15. Nxd4 {[%clk 0:01:30.9]}
15... Ra7 {[%clk 0:00:27.2]} 16. Qb3 {[%clk 0:01:02.2]} 16... Nc5 {[%clk
0:00:18.5]} 17. Bxc8 {[%clk 0:00:54.7]} 17... Nxb3 {[%clk 0:00:18.6]} 18. Bxb7
{[%clk 0:00:49.4]} 18... Nxd4 {[%clk 0:00:13.9]} 19. Bxd5 {[%clk 0:00:43.6]}
19... Rc8 {[%clk 0:00:10.4]} 20. Be3 {[%clk 0:00:37.4]} 20... Rxc3 {[%clk
0:00:05.2]} 21. Bxd4 {[%clk 0:00:37.3]} 21... Rxa3 {[%clk 0:00:02.9]} 1-0

[Event "*** Titled Tuesday Blitz"]
[Site "Chess.com"]
[Date "2020.04.14"]
[Round "5"]
[White "White_Ghost"]
[Black "SanQui14"]
[Result "0-1"]
[WhiteElo "2474"]
[BlackElo "2332"]
[TimeControl "180+1"]
[EndTime "10:50:08 PDT"]
[Termination "SanQui14 won by checkmate"]

1. d4 {[%clk 0:02:59.1]} 1... Nf6 {[%clk 0:02:56.3]} 2. c4 {[%clk 0:02:58.7]}
2... e6 {[%clk 0:02:56.5]} 3. Nf3 {[%clk 0:02:58.4]} 3... c5 {[%clk 0:02:56.1]}
4. d5 {[%clk 0:02:54.1]} 4... b5 {[%clk 0:02:56.2]} 5. Bf4 {[%clk 0:02:53.7]}
5... d6 {[%clk 0:02:53.4]} 6. dxe6 {[%clk 0:02:49.1]} 6... fxe6 {[%clk
0:02:51.3]} 7. e3 {[%clk 0:02:48]} 7... bxc4 {[%clk 0:02:48.3]} 8. Bxc4 {[%clk
0:02:46.5]} 8... Be7 {[%clk 0:02:44]} 9. Ng5 {[%clk 0:02:43.1]} 9... d5 {[%clk
0:02:41.5]} 10. Bb5+ {[%clk 0:02:42.4]} 10... Bd7 {[%clk 0:02:21]} 11. Nxe6
{[%clk 0:02:35]} 11... Qa5+ {[%clk 0:02:19.9]} 12. Nc3 {[%clk 0:02:34.7]} 12...
Bxb5 {[%clk 0:02:18.3]} 13. Nc7+ {[%clk 0:02:31.9]} 13... Kf7 {[%clk 0:02:18.1]}
14. Nxb5 {[%clk 0:02:25.4]} 14... Nc6 {[%clk 0:02:06.7]} 15. O-O {[%clk
0:02:24.3]} 15... Rac8 {[%clk 0:01:32.6]} 16. Nd6+ {[%clk 0:02:10.8]} 16... Bxd6
{[%clk 0:01:29.4]} 17. Bxd6 {[%clk 0:02:11.7]} 17... Rhd8 {[%clk 0:01:28.8]} 18.
Bg3 {[%clk 0:02:10.8]} 18... Kg8 {[%clk 0:01:21.9]} 19. Bh4 {[%clk 0:02:03.2]}
19... d4 {[%clk 0:01:17.7]} 20. Bxf6 {[%clk 0:02:00.4]} 20... gxf6 {[%clk
0:01:18.1]} 21. Qg4+ {[%clk 0:01:54.5]} 21... Kf7 {[%clk 0:00:57.7]} 22. Ne4
{[%clk 0:01:55.4]} 22... Ne5 {[%clk 0:00:48]} 23. Nd6+ {[%clk 0:01:35.9]} 23...
Rxd6 {[%clk 0:00:21.6]} 24. Qxc8 {[%clk 0:01:35.1]} 24... c4 {[%clk 0:00:14.8]}
25. exd4 {[%clk 0:01:33]} 25... Rxd4 {[%clk 0:00:15.4]} 26. Rad1 {[%clk
0:01:29.4]} 26... Rd3 {[%clk 0:00:12.7]} 27. Qb7+ {[%clk 0:01:25.6]} 27... Kg6
{[%clk 0:00:11.8]} 28. Qe4+ {[%clk 0:01:24.2]} 28... Kf7 {[%clk 0:00:11.6]} 29.
Qxh7+ {[%clk 0:01:23.9]} 29... Ke6 {[%clk 0:00:11.5]} 30. Rxd3 {[%clk
0:01:20.9]} 30... cxd3 {[%clk 0:00:10.8]} 31. Rd1 {[%clk 0:01:20.9]} 31... Qa4
{[%clk 0:00:10.3]} 32. Qg8+ {[%clk 0:01:18.7]} 32... Kf5 {[%clk 0:00:10.6]} 33.
Qc8+ {[%clk 0:01:04.9]} 33... Kg6 {[%clk 0:00:10.6]} 34. Qc1 {[%clk 0:01:04.1]}
34... Qg4 {[%clk 0:00:10.6]} 35. Qe3 {[%clk 0:01:01.3]} 35... Qxd1+ {[%clk
0:00:10.1]} 36. Qe1 {[%clk 0:00:55.1]} 36... Qxe1# {[%clk 0:00:10]} 0-1

[Event "*** Titled Tuesday Blitz"]
[Site "Chess.com"]
[Date "2020.04.14"]
[Round "5"]
[White "manuellarrea"]
[Black "Barbus89"]
[Result "1-0"]
[WhiteElo "2119"]
[BlackElo "2309"]
[TimeControl "180+1"]
[EndTime "10:50:09 PDT"]
[Termination "manuellarrea won by resignation"]

1. e4 {[%clk 0:03:00.2]} 1... d5 {[%clk 0:02:48]} 2. exd5 {[%clk 0:02:58.2]}
2... Nf6 {[%clk 0:02:47.4]} 3. c4 {[%clk 0:02:56.9]} 3... c6 {[%clk 0:02:47.3]}
4. d4 {[%clk 0:02:56.7]} 4... cxd5 {[%clk 0:02:44]} 5. Nc3 {[%clk 0:02:57.1]}
5... g6 {[%clk 0:02:43.8]} 6. cxd5 {[%clk 0:02:55.6]} 6... Bg7 {[%clk
0:02:43.1]} 7. Bb5+ {[%clk 0:02:55]} 7... Nbd7 {[%clk 0:02:42.4]} 8. d6 {[%clk
0:02:54.9]} 8... O-O {[%clk 0:02:42]} 9. dxe7 {[%clk 0:02:54.5]} 9... Qxe7+
{[%clk 0:02:42.4]} 10. Nge2 {[%clk 0:02:54.1]} 10... a6 {[%clk 0:02:42.2]} 11.
Bd3 {[%clk 0:02:48.1]} 11... b5 {[%clk 0:02:41.7]} 12. O-O {[%clk 0:02:41.4]}
12... Bb7 {[%clk 0:02:36.6]} 13. Bg5 {[%clk 0:02:36]} 13... Nb6 {[%clk
0:02:09.5]} 14. a3 {[%clk 0:02:29.9]} 14... Rac8 {[%clk 0:02:07.7]} 15. Rc1
{[%clk 0:02:28]} 15... Nc4 {[%clk 0:02:05.2]} 16. Qc2 {[%clk 0:01:50]} 16... Ba8
{[%clk 0:01:49.7]} 17. Rfe1 {[%clk 0:01:30.6]} 17... Qb7 {[%clk 0:01:47.2]} 18.
f3 {[%clk 0:01:18]} 18... Nd5 {[%clk 0:01:38.8]} 19. Be4 {[%clk 0:01:07.8]}
19... Qc6 {[%clk 0:01:25.2]} 20. Nxd5 {[%clk 0:00:55.8]} 20... Qd6 {[%clk
0:01:09.4]} 21. Ne7+ {[%clk 0:00:43.3]} 21... Kh8 {[%clk 0:01:08]} 22. Nxc8
{[%clk 0:00:41.3]} 22... Bxd4+ {[%clk 0:00:58.1]} 23. Nxd4 {[%clk 0:00:30.5]}
23... Qxd4+ {[%clk 0:00:59]} 24. Kh1 {[%clk 0:00:26.2]} 24... Rxc8 {[%clk
0:00:52.3]} 25. Bxa8 {[%clk 0:00:24.4]} 25... Rxa8 {[%clk 0:00:53.2]} 26. Rcd1
{[%clk 0:00:20.5]} 26... Qb6 {[%clk 0:00:42]} 27. b3 {[%clk 0:00:19.9]} 27... f6
{[%clk 0:00:38.6]} 28. bxc4 {[%clk 0:00:18.3]} 28... fxg5 {[%clk 0:00:38.7]} 29.
Qc3+ {[%clk 0:00:18]} 29... Kg8 {[%clk 0:00:38.4]} 30. Re7 {[%clk 0:00:17.2]}
1-0

[Event "*** Titled Tuesday Blitz"]
[Site "Chess.com"]
[Date "2020.04.14"]
[Round "5"]
[White "DIM90"]
[Black "gixfantastix"]
[Result "1-0"]
[WhiteElo "2244"]
[BlackElo "2080"]
[TimeControl "180+1"]
[EndTime "10:50:09 PDT"]
[Termination "DIM90 won by checkmate"]

1. e4 {[%clk 0:02:57.4]} 1... d5 {[%clk 0:02:52.4]} 2. exd5 {[%clk 0:02:54.5]}
2... Qxd5 {[%clk 0:02:53.3]} 3. Nc3 {[%clk 0:02:53.7]} 3... Qd6 {[%clk
0:02:53.6]} 4. d4 {[%clk 0:02:50.8]} 4... a6 {[%clk 0:02:53.5]} 5. Nf3 {[%clk
0:02:49.8]} 5... Nf6 {[%clk 0:02:52.7]} 6. Ne5 {[%clk 0:02:49]} 6... c5 {[%clk
0:02:42.7]} 7. Nc4 {[%clk 0:02:35.4]} 7... Qc7 {[%clk 0:02:36.6]} 8. g3 {[%clk
0:02:23.4]} 8... b5 {[%clk 0:02:23.8]} 9. Bf4 {[%clk 0:02:21.7]} 9... Qa7 {[%clk
0:02:17]} 10. Ne5 {[%clk 0:02:13.6]} 10... Bb7 {[%clk 0:02:09.5]} 11. d5 {[%clk
0:02:08.1]} 11... e6 {[%clk 0:02:08]} 12. dxe6 {[%clk 0:02:03.1]} 12... Bxh1
{[%clk 0:02:04.1]} 13. exf7+ {[%clk 0:02:02.9]} 13... Ke7 {[%clk 0:02:03.7]} 14.
Bh3 {[%clk 0:01:45.2]} 14... b4 {[%clk 0:01:16.1]} 15. Ng6+ {[%clk 0:01:35]}
15... Kxf7 {[%clk 0:01:03.3]} 16. Be6+ {[%clk 0:01:21.5]} 16... Kxe6 {[%clk
0:00:57.8]} 17. Nxh8 {[%clk 0:01:12.9]} 17... bxc3 {[%clk 0:00:54.2]} 18. Qe2+
{[%clk 0:01:07.3]} 18... Kd7 {[%clk 0:00:25.9]} 19. O-O-O+ {[%clk 0:01:06.5]}
19... Kc8 {[%clk 0:00:26]} 20. Qe6+ {[%clk 0:00:58.8]} 20... Nbd7 {[%clk
0:00:22.2]} 21. Rxh1 {[%clk 0:00:57.2]} 21... Qb7 {[%clk 0:00:21.6]} 22. Re1
{[%clk 0:00:29]} 22... Qxb2+ {[%clk 0:00:21.5]} 23. Kd1 {[%clk 0:00:29]} 23...
Qb1+ {[%clk 0:00:20.3]} 24. Bc1 {[%clk 0:00:29]} 24... Qxc2+ {[%clk 0:00:21.2]}
25. Kxc2 {[%clk 0:00:28.3]} 25... Rb8 {[%clk 0:00:18.5]} 26. Qc6+ {[%clk
0:00:27.3]} 26... Kd8 {[%clk 0:00:17.6]} 27. Nf7# {[%clk 0:00:27.9]} 1-0

[Event "*** Titled Tuesday Blitz"]
[Site "Chess.com"]
[Date "2020.04.14"]
[Round "5"]
[White "Eloist"]
[Black "MPGM"]
[Result "0-1"]
[WhiteElo "2263"]
[BlackElo "2469"]
[TimeControl "180+1"]
[EndTime "10:50:10 PDT"]
[Termination "MPGM won on time"]

1. e4 {[%clk 0:03:00.9]} 1... c6 {[%clk 0:02:58.9]} 2. Nf3 {[%clk 0:03:00.4]}
2... d5 {[%clk 0:02:59.3]} 3. Nc3 {[%clk 0:03:00.4]} 3... Bg4 {[%clk 0:02:55.9]}
4. d4 {[%clk 0:02:59.7]} 4... e6 {[%clk 0:02:51.3]} 5. h3 {[%clk 0:02:58.7]}
5... Bh5 {[%clk 0:02:49.3]} 6. Bd3 {[%clk 0:02:58.3]} 6... Nf6 {[%clk
0:02:46.5]} 7. O-O {[%clk 0:02:51.8]} 7... Be7 {[%clk 0:02:44.9]} 8. Re1 {[%clk
0:02:41]} 8... Bg6 {[%clk 0:02:29.6]} 9. Bf4 {[%clk 0:02:11.4]} 9... dxe4 {[%clk
0:02:25.3]} 10. Nxe4 {[%clk 0:02:09.9]} 10... Nxe4 {[%clk 0:02:25.6]} 11. Bxe4
{[%clk 0:02:09.8]} 11... Nd7 {[%clk 0:02:26.2]} 12. Bxg6 {[%clk 0:02:05.9]}
12... hxg6 {[%clk 0:02:27.1]} 13. c4 {[%clk 0:01:58.9]} 13... O-O {[%clk
0:02:17.9]} 14. d5 {[%clk 0:01:52.1]} 14... cxd5 {[%clk 0:02:16.8]} 15. cxd5
{[%clk 0:01:52]} 15... exd5 {[%clk 0:02:15.7]} 16. Qxd5 {[%clk 0:01:50.8]} 16...
Nf6 {[%clk 0:01:37]} 17. Qxb7 {[%clk 0:01:48]} 17... Bc5 {[%clk 0:01:35.8]} 18.
Rad1 {[%clk 0:01:18.6]} 18... Qa5 {[%clk 0:01:34.2]} 19. a3 {[%clk 0:01:17.4]}
19... Qa4 {[%clk 0:01:29.1]} 20. b4 {[%clk 0:00:53.5]} 20... Bb6 {[%clk
0:01:28]} 21. Rd3 {[%clk 0:00:50]} 21... Qc2 {[%clk 0:01:25.5]} 22. Rd2 {[%clk
0:00:44.6]} 22... Qc3 {[%clk 0:01:15.6]} 23. Qa6 {[%clk 0:00:34.8]} 23... Rfe8
{[%clk 0:01:12]} 24. Rxe8+ {[%clk 0:00:27.6]} 24... Rxe8 {[%clk 0:01:12.9]} 25.
Qd3 {[%clk 0:00:27]} 25... Qc1+ {[%clk 0:01:00]} 26. Kh2 {[%clk 0:00:22.5]}
26... Ne4 {[%clk 0:00:54.9]} 27. Qd7 {[%clk 0:00:14.3]} 27... Rf8 {[%clk
0:00:53.2]} 28. Bd6 {[%clk 0:00:03.2]} 28... Nxd6 {[%clk 0:00:50.6]} 29. Rxd6
{[%clk 0:00:01.2]} 29... Bc7 {[%clk 0:00:50.7]} 0-1

[Event "*** Titled Tuesday Blitz"]
[Site "Chess.com"]
[Date "2020.04.14"]
[Round "5"]
[White "axvesik"]
[Black "johnathan113"]
[Result "0-1"]
[WhiteElo "2447"]
[BlackElo "2643"]
[TimeControl "180+1"]
[EndTime "10:50:11 PDT"]
[Termination "johnathan113 won by resignation"]

1. e4 {[%clk 0:03:00.9]} 1... c5 {[%clk 0:03:00]} 2. Nf3 {[%clk 0:02:58]} 2...
g6 {[%clk 0:03:00.9]} 3. d4 {[%clk 0:02:57.8]} 3... cxd4 {[%clk 0:03:01.8]} 4.
Nxd4 {[%clk 0:02:58.5]} 4... Bg7 {[%clk 0:03:01.8]} 5. Nc3 {[%clk 0:02:59.2]}
5... Nc6 {[%clk 0:03:02.4]} 6. Be3 {[%clk 0:02:59.2]} 6... Nf6 {[%clk
0:03:02.9]} 7. Bc4 {[%clk 0:02:59.3]} 7... O-O {[%clk 0:03:03.5]} 8. Bb3 {[%clk
0:02:59.9]} 8... d5 {[%clk 0:03:03.9]} 9. exd5 {[%clk 0:02:55.6]} 9... Na5
{[%clk 0:03:04.4]} 10. Qd2 {[%clk 0:02:52.9]} 10... Nxb3 {[%clk 0:02:54.7]} 11.
Nxb3 {[%clk 0:02:52.5]} 11... b5 {[%clk 0:02:50.4]} 12. Nxb5 {[%clk 0:02:29.4]}
12... Qxd5 {[%clk 0:02:26.8]} 13. Nc3 {[%clk 0:02:04.2]} 13... Qxg2 {[%clk
0:02:24.2]} 14. O-O-O {[%clk 0:02:03.6]} 14... a5 {[%clk 0:02:21.1]} 15. Bh6
{[%clk 0:01:59.1]} 15... Bxh6 {[%clk 0:02:15.7]} 16. Qxh6 {[%clk 0:01:58.4]}
16... a4 {[%clk 0:02:16]} 17. Nd4 {[%clk 0:01:56.6]} 17... a3 {[%clk 0:02:15.6]}
18. b3 {[%clk 0:01:56.7]} 18... Bg4 {[%clk 0:01:59.6]} 19. Rhg1 {[%clk
0:01:28.8]} 19... Qxf2 {[%clk 0:01:55.2]} 20. Rgf1 {[%clk 0:01:28.2]} 20... Qg2
{[%clk 0:01:54.5]} 21. Rde1 {[%clk 0:01:06.5]} 21... Rac8 {[%clk 0:01:46.4]} 22.
Qe3 {[%clk 0:01:00.5]} 22... Rfe8 {[%clk 0:01:25.3]} 23. Rg1 {[%clk 0:00:52.7]}
23... Qxh2 {[%clk 0:01:21.2]} 24. Rh1 {[%clk 0:00:46.9]} 24... Qc7 {[%clk
0:01:13.9]} 25. Ndb5 {[%clk 0:00:46.6]} 25... Qc5 {[%clk 0:01:09.9]} 26. Qh6
{[%clk 0:00:44.6]} 26... Bh5 {[%clk 0:01:06.5]} 27. Reg1 {[%clk 0:00:35.8]}
27... Kh8 {[%clk 0:00:55]} 28. Rg3 {[%clk 0:00:27.1]} 28... Rb8 {[%clk
0:00:41.2]} 29. Qg5 {[%clk 0:00:18.7]} 29... Rec8 {[%clk 0:00:36.1]} 0-1